Cogmind - Beta 10.2 @@@ ROGUE MODE // 2021.11.13 @ 23:58:33 Player: MistressMomoko Result: Destroyed by Y-54 Guardian with Gatling Laser Performance ------------- Evolutions (3) 1500 Regions Visited (6) 1200 Robots Destroyed (42) 210 Value Destroyed (1329) 1329 Prototype IDs (4) 80 Alien Tech Used (0) 0 Bonus (13) 13 TOTAL SCORE: 4332 Bonus ------- High Alert Combat Kills 13 Cogmind --------- Core Integrity 0/700 Matter 235/300 Energy 100/100 System Corruption 4% Temperature Cool (18) Movement Walking (120) Location -7/Storage Parts ------- > --- POWER (2) -------- (None) > --- PROPULSION (3) --- Carbon-fiber Leg > --- UTILITY (5) ------ Visual Processing Unit > --- WEAPON (3) ------- Precision Rocket Launcher > --- INVENTORY (4) ---- Heat Sink System Backup Module Peak State ------------ > --- POWER ------------ Improved Ion Engine Nuclear Core > --- PROPULSION ------- Gravmag System Gravmag System > --- UTILITY ---------- Small Storage Unit Visual Processing Unit Improved Targeting Computer Core Analyzer > --- WEAPON ----------- Beam Rifle Minigun Flak Gun > --- INVENTORY -------- Nuclear Core Improved VTOL Module Improved VTOL Module Heat Sink [Rating: 32] Favorites ----------- Power Ion Engine Engine Ion Engine Power Core Nuclear Core Propulsion Light Treads Treads Light Treads Leg Aluminum Leg Wheel Compact Wheel Hover Unit Gravmag System Flight Unit Improved VTOL Module Utility Visual Processing Unit Device Shield Generator Storage Small Storage Unit Processor Visual Processing Unit Protection Weapon Shielding Weapon Assault Rifle Energy Gun Small Laser Energy Cannon Particle Cannon Ballistic Gun Assault Rifle Ballistic Cannon Improved Light Cannon Launcher Rocket Launcher Slashing Weapon Great Axe Build | -11 -10 -10 -9 -8 -7 -7 ------- Run | Scr Mat Min Mat Mat Fac Sto Slots Evolved 6 | . . . 2 2 2 . Power 1 | . . . . 1 . . Propulsion 1 | . . . 1 . . . Utility 3 | . . . 1 1 1 . Weapon 1 | . . . . . 1 . Parts Attached 62 | 6 2 . 16 8 18 12 Power 8 | 1 . . 2 . 3 2 Engine 6 | 1 . . 2 . 1 2 Core 2 | . . . . . 2 . Reactor . | . . . . . . . Propulsion 23 | 2 . . 6 3 7 5 Treads 3 | . . . 1 . . 2 Leg 6 | . . . 2 . 3 1 Wheel 2 | 2 . . . . . . Hover 2 | . . . . . 2 . Flight 10 | . . . 3 3 2 2 Utility 13 | 1 1 . 4 2 2 3 Device 6 | . . . 2 1 . 3 Storage 3 | 1 1 . . . 1 . Processor 3 | . . . 1 1 1 . Hackware . | . . . . . . . Protection 1 | . . . 1 . . . Artifact . | . . . . . . . Weapon 18 | 2 1 . 4 3 6 2 Energy Gun 3 | 1 . . 1 . 1 . Energy Cannon 1 | . . . 1 . . . Ballistic Gun 7 | 1 . . 1 . 4 1 Ballistic Cannon 2 | . . . 1 1 . . Launcher 4 | . 1 . . 2 . 1 Special Weapon . | . . . . . . . Impact Weapon . | . . . . . . . Slashing Weapon 1 | . . . . . 1 . Piercing Weapon . | . . . . . . . Special Melee Weapon . | . . . . . . . Unidentified Prototypes 2 | . . . . 1 . 1 Parts Lost 41 | . . . 15 4 8 14 Power 8 | . . . 2 . 2 4 Propulsion 12 | . . . 4 . 3 5 Utility 9 | . . . 4 1 1 3 Weapon 12 | . . . 5 3 2 2 Highest Loss Streak 6 | . . . 4 2 4 6 Average Slot Usage (%) 64 | . 95 100 70 28 56 55 Engine 7 | . 14 14 10 . 2 5 Core 1 | . . . . . 4 3 Treads 2 | . . . 4 . . 3 Leg 2 | . . . 5 . 3 . Wheel 5 | . 28 28 1 . . . Flight 4 | . . . 3 . 2 14 Device 2 | . . . 3 . . 5 Storage 7 | . 24 28 7 . 3 . Processor 10 | . . . 6 13 18 14 Protection 1 | . . . 5 . . . Energy Gun 2 | . 4 . 4 . 3 . Energy Cannon 1 | . . . 5 . . . Ballistic Gun 6 | . 14 14 5 2 9 3 Ballistic Cannon 1 | . . . 5 1 . . Launcher 4 | . 10 14 . 11 . . Slashing Weapon 1 | . . . . . 3 3 Naked Turns . | . . . . . . . Heaviest Build 28 | 12 17 17 18 9 28 18 Greatest Support 40 | 26 26 26 26 12 22 40 Greatest Overweight (x) 9 | . . . 2 2 9 4 Average Overweight (x) . | . . . . 1 . . Largest Inventory Capacity 6 | 6 6 6 6 4 6 4 Average Capacity 4 | 5 6 6 4 4 4 4 Most Carried 6 | 5 6 6 6 4 6 4 Average Carried 4 | 3 5 6 4 3 3 3 Final Capacity 6 | 6 6 6 4 4 4 4 Final Carried 6 | 4 6 6 3 3 4 2 Class Distribution -------------------- 92% | Mutant 7% | Sprinter Dominant Class ---------------- Mutant | -10/Materials Mutant | -10/Mines Mutant | -9/Materials Mutant | -8/Materials Mutant | -7/Factory Sprinter | -7/Storage Resources | -11 -10 -10 -9 -8 -7 -7 ----------- Run | Scr Mat Min Mat Mat Fac Sto Matter Collected 1165 | 209 . 89 277 100 209 281 Remotely . | . . . . . . . Salvage Created 1252 | . . 85 424 134 282 327 Parts 91 | . . 10 30 10 20 21 Haulers Intercepted . | . . . . . . . Recyclers Shooed 4 | . . 1 . 1 1 1 Parts Field Recycled . | . . . . . . . Retrieved Matter . | . . . . . . . Parts Self-Destructed . | . . . . . . . Prevented . | . . . . . . . Kills | -11 -10 -10 -9 -8 -7 -7 ------- Run | Scr Mat Min Mat Mat Fac Sto Combat Hostiles Destroyed 35 | . . 5 12 7 5 6 Melee 4 | . . . . . 1 3 Guns 16 | . . 1 8 1 4 2 Cannons 6 | . . . 4 2 . . AOE 9 | . . 4 . 4 . 1 Classes Destroyed 9 | . . 3 2 1 3 . Builder 3 | . . 1 . . 1 1 Recycler 1 | . . . . 1 . . Operator 1 | . . . . . 1 . Watcher 2 | . . . 1 1 . . Swarmer 14 | . . 3 6 5 . . Grunt 7 | . . 2 . . 3 2 Sentry 11 | . . . 6 2 . 3 Hunter 1 | . . . . . 1 . Programmer 2 | . . . . . 1 1 Best Kill Streak 6 | . . 6 3 4 2 2 Combat Bots Only 5 | . . 5 3 3 2 2 Max Kills in Single Turn 3 | . . 2 1 3 1 1 Gunslinging . | . . . . . . . Exploded 2 | . . 2 . 2 . 1 Melee 1 | . . . . . 1 1 Uniques/NPCs Destroyed . | . . . . . . . Combat | -11 -10 -10 -9 -8 -7 -7 -------- Run | Scr Mat Min Mat Mat Fac Sto Damage Taken 4585 | . . 188 1322 609 1158 1308 Core 1199 | . . 10 214 275 257 443 Absorbed by Shields 144 | . . . 104 . . 40 Core Remaining (%) 73 | 100 . 96 46 50 . . Volleys Fired 99 | . . 8 43 18 19 11 Largest 3 | . . 2 2 2 3 1 Hottest 109 | . . 50 108 66 109 43 Shots Fired 178 | . . 16 84 35 32 11 Gun 110 | . . 8 51 11 32 8 Cannon 42 | . . . 31 11 . . Launcher 26 | . . 8 2 13 . 3 Special . | . . . . . . . Kinetic 97 | . . 8 34 22 25 8 Thermal 55 | . . . 48 . 7 . Explosive 26 | . . 8 2 13 . 3 Electromagnetic . | . . . . . . . Robot Hit Streak 12 | . . 2 12 5 9 9 Robot Miss Streak 5 | . . 4 3 5 4 4 Penetration Max . | . . . . . . . Secondary Targets . | . . . . . . . Shots Hit Robots 132 | . . 7 50 26 26 23 Core Hits 96 | . . 15 20 22 25 14 Critical Hits . | . . . . . . . Critical Kills . | . . . . . . . Critical Parts Destroyed . | . . . . . . . Melee Attacks 14 | . . . . . . 14 Impact . | . . . . . . . Slashing 14 | . . . . . . 14 Piercing . | . . . . . . . Sneak Attacks 1 | . . . . . . 1 Combat Hostiles . | . . . . . . . Follow-up Attacks . | . . . . . . . Damage Inflicted 3096 | . . 411 731 652 447 855 Guns 1040 | . . 46 415 56 396 127 Cannons 420 | . . . 291 129 . . Explosions 1037 | . . 365 16 467 29 160 Melee 567 | . . . . . . 567 Ramming 32 | . . . 9 . 22 1 Kinetic 923 | . . 46 256 185 309 127 Thermal 566 | . . . 450 . 116 . Explosive 1008 | . . 365 16 467 . 160 Electromagnetic . | . . . . . . . Impact . | . . . . . . . Slashing 567 | . . . . . . 567 Piercing . | . . . . . . . Highest Corruption 4 | . . . . . . 4 Average Corruption 3 | . . . . . . 3 Corruption Purged . | . . . . . . . Effects 2 | . . . . . . 2 Message Errors 1 | . . . . . . 1 Heat Flow Errors 1 | . . . . . . 1 Overload Shots . | . . . . . . . Overflow Damage 139 | . . 3 . 1 51 84 Projectiles . | . . . . . . . Explosions 55 | . . 3 . 1 51 . Melee 84 | . . . . . . 84 Knockbacks 3 | . . . . 2 1 . Impact 1 | . . . . . 1 . Kinetic 2 | . . . . 2 . . Secondary . | . . . . . . . Self-Inflicted Damage 203 | . . 28 13 56 106 . Shots 6 | . . 1 1 3 1 . Rammed 12 | . . . 1 . 10 1 Targets Rammed 12 | . . . 1 . 10 1 Kicked . | . . . . . . . Crushed . | . . . . . . . Highest Temperature 294 | . . 12 294 4 140 88 Average Temperature 61 | . . 7 76 2 58 41 Received Heat Transfer 1236 | . . 48 289 117 441 341 Siege Activations . | . . . . . . . Robots Corrupted . | . . . . . . . Combat Hostiles . | . . . . . . . Parts Fried . | . . . . . . . Impact Corruptions . | . . . . . . . Robots Melted . | . . . . . . . Combat Hostiles . | . . . . . . . Parts Melted 3 | . . . 2 . 1 . Heat Transferred 1179 | . . . 907 . 272 . Parts Sabotaged . | . . . . . . . Parts Stolen . | . . . . . . . Parts Stripped . | . . . . . . . Power Chain Reactions . | . . . . . . . Missiles Intercepted . | . . . . . . . Alert | -11 -10 -10 -9 -8 -7 -7 ------- Run | Scr Mat Min Mat Mat Fac Sto Peak Influence 425 | . . 140 320 397 425 173 Initial 180 | . . . 54 83 180 104 Average 172 | . . 78 185 224 288 90 Maximum Alert Level 2 | . . . 1 1 2 . Low Security (%) 60 | 100 100 100 50 37 23 100 Level 1 37 | . . . 49 62 66 . Level 2 2 | . . . . . 10 . Level 3 . | . . . . . . . Level 4 . | . . . . . . . Level 5 . | . . . . . . . High Security . | . . . . . . . Max Security . | . . . . . . . Squads Dispatched 4 | . . . . . 2 2 Investigation 1 | . . . . . . 1 Extermination 2 | . . . . . 1 1 Reinforcement 1 | . . . . . 1 . Assault . | . . . . . . . Garrison . | . . . . . . . Intercept . | . . . . . . . Construction Impeded . | . . . . . . . Haulers Reinforced . | . . . . . . . Stealth | -11 -10 -10 -9 -8 -7 -7 --------- Run | Scr Mat Min Mat Mat Fac Sto Distress Signals 4 | . . . . 3 . 1 Communications Jammed 21 | . . . . . . 21 Distress Signals 19 | . . . . . . 19 Times Spotted 72 | . . 7 24 18 12 11 Peak Tracking Total 7 | . . 5 5 7 5 5 Tactical Retreats 5 | . . . 2 2 . 1 Traps | -11 -10 -10 -9 -8 -7 -7 ------- Run | Scr Mat Min Mat Mat Fac Sto Traps Triggered 1 | . . . . . . 1 Indirectly . | . . . . . . . Trap Hack Attempts . | . . . . . . . Triggered . | . . . . . . . Disarmed . | . . . . . . . Reprogrammed . | . . . . . . . Reused . | . . . . . . . Traps Extracted . | . . . . . . . Installed . | . . . . . . . Triggered . | . . . . . . . Machines | -11 -10 -10 -9 -8 -7 -7 ---------- Run | Scr Mat Min Mat Mat Fac Sto Machines Disabled 9 | . . 1 . 2 6 . Max in Single Turn 6 | . . 1 . 1 6 . Machines Sabotaged . | . . . . . . . Garrisons Compromised . | . . . . . . . Overloaded Fab Kills . | . . . . . . . Fab Network Shutdowns . | . . . . . . . Hacking | -11 -10 -10 -9 -8 -7 -7 --------- Run | Scr Mat Min Mat Mat Fac Sto Machines Accessed 9 | . . . 2 1 2 4 Terminals 7 | . . . 2 1 1 3 Fabricators 1 | . . . . . 1 . Repair Stations 1 | . . . . . . 1 Recycling Units . | . . . . . . . Scanalyzers . | . . . . . . . Garrison Access . | . . . . . . . Total Hacks 16 | . . . 3 2 5 6 Successful 13 | . . . 3 1 3 6 Failed 3 | . . . . 1 2 . Catastrophic . | . . . . . . . Database Lockouts . | . . . . . . . Manual . | . . . . . . . Terminals 12 | . . . 3 2 4 3 Fabricators 1 | . . . . . 1 . Repair Stations 3 | . . . . . . 3 Recycling Units . | . . . . . . . Scanalyzers . | . . . . . . . Garrison Access . | . . . . . . . Terminal Hacks 9 | . . . 3 1 2 3 Record 3 | . . . . 1 2 . Prototype ID Bank 1 | . . . 1 . . . Open Door 2 | . . . . . . 2 Emergency Access Points 1 | . . . 1 . . . Unreport Threat 1 | . . . . . . 1 Recall Investigation 1 | . . . 1 . . . Fabricator Hacks 1 | . . . . . 1 . Network Status 1 | . . . . . 1 . Repair Station Hacks 3 | . . . . . . 3 Scan Component 1 | . . . . . . 1 Repair 1 | . . . . . . 1 Refit 1 | . . . . . . 1 Recycling Unit Hacks . | . . . . . . . Scanalyzer . | . . . . . . . Garrison Access Hacks . | . . . . . . . Unauthorized Hacks . | . . . . . . . Terminals . | . . . . . . . Fabricators . | . . . . . . . Repair Stations . | . . . . . . . Recycling Units . | . . . . . . . Scanalyzers . | . . . . . . . Garrison Access . | . . . . . . . Data Cores Recovered . | . . . . . . . Used . | . . . . . . . Hacking Detections 4 | . . . . 1 1 2 Full Trace Events 1 | . . . . . . 1 Feedback Events . | . . . . . . . Feedback Blocked . | . . . . . . . Robot Schematics Acquired . | . . . . . . . Robots Built . | . . . . . . . Matter . | . . . . . . . Time . | . . . . . . . Total Robot Build Rating . | . . . . . . . Part Schematics Acquired . | . . . . . . . Parts Built . | . . . . . . . Matter . | . . . . . . . Time . | . . . . . . . Total Part Build Rating . | . . . . . . . Parts Repaired 1 | . . . . . . 1 Time 44 | . . . . . . 44 Parts Recycled . | . . . . . . . Recycled Matter . | . . . . . . . Retrieved Matter . | . . . . . . . Retrieved Components . | . . . . . . . Parts Scanalyzed . | . . . . . . . Part Schematics Acquired . | . . . . . . . Parts Damaged . | . . . . . . . Bothacking | -11 -10 -10 -9 -8 -7 -7 ------------ Run | Scr Mat Min Mat Mat Fac Sto Used RIF Installer . | . . . . . . . Robots Hacked . | . . . . . . . Non-combat . | . . . . . . . Combat . | . . . . . . . Robot Hacks Applied . | . . . . . . . Relay Couplers Released . | . . . . . . . Robots Rewired . | . . . . . . . Allies Hacked . | . . . . . . . Hacks Repelled . | . . . . . . . Allies | -11 -10 -10 -9 -8 -7 -7 -------- Run | Scr Mat Min Mat Mat Fac Sto Total Allies . | . . . . . . . Largest Group . | . . . . . . . Highest-Rated Group . | . . . . . . . Highest-Rated Ally . | . . . . . . . Total Orders . | . . . . . . . Ally Attacks . | . . . . . . . Total Damage . | . . . . . . . Kills . | . . . . . . . Allies Corrupted . | . . . . . . . Allies Melted . | . . . . . . . Intel | -11 -10 -10 -9 -8 -7 -7 ------- Run | Scr Mat Min Mat Mat Fac Sto Robot Analysis Total . | . . . . . . . Derelict Logs Recovered 1 | . . 1 . . . . Drone Launches . | . . . . . . . Drone Recoveries . | . . . . . . . Exploration | -11 -10 -10 -9 -8 -7 -7 ------------- Run | Scr Mat Min Mat Mat Fac Sto Turns Passed 2402 | 59 79 317 763 329 488 367 Spaces Moved 1749 | 52 82 321 507 237 258 292 Core 275 | 8 . . 14 224 6 23 Treads 235 | . . . 193 . . 42 Legs 261 | . . . 129 . 128 4 Wheels 498 | 44 82 321 51 . . . Hover 84 | . . . . . 84 . Flight 396 | . . . 120 13 40 223 Fastest Speed 32 | 50 90 90 34 32 32 32 Average Speed 100 | 83 90 90 117 109 125 60 Slowest Speed 500 | 90 90 90 197 150 500 250 Overloaded Moves . | . . . . . . . Propulsion Burnouts . | . . . . . . . Robots Hopped 4 | . . . 1 3 . . Cave-ins Triggered . | . . . . . . . Exploration Rate (%) 32 | 4 21 64 48 26 10 55 Regions Visited 6 Branch Regions 2 Pre-discovered Areas 1 | . . 1 . . . . Known Exits Taken . | . . . . . . . Unknown Exits Taken 6 | 1 1 1 1 1 1 . Scrap Searched 1 | . . 1 . . . . Spaces Dug 9 | . . . 9 . . . Terrain Destroyed 256 | . . 34 18 98 44 62 Melee . | . . . . . . . Projectile 2 | . . . 2 . . . AOE 254 | . . 34 16 98 44 62 Terrain Rammed . | . . . . . . . Walls Destroyed . | . . . . . . . Machines Disabled . | . . . . . . . Actions | -11 -10 -10 -9 -8 -7 -7 --------- Run | Scr Mat Min Mat Mat Fac Sto Total 2186 | 66 86 332 590 270 396 446 Wait 184 | . . 4 10 4 70 96 Move 1736 | 51 81 320 504 231 257 292 Hop 3 | . . . 1 2 . . Pick Up 48 | 9 3 . 8 6 14 8 Fast Attach 11 | 1 . . 4 2 3 1 Attach 48 | 5 1 . 11 6 15 10 Detach 4 | . . . 2 . 2 . Swap 3 | . 1 . 1 . . 1 Drop 13 | . . . 5 1 6 1 Fire 99 | . . 8 43 18 19 11 Melee 14 | . . . . . . 14 Ram 10 | . . . . . 10 . Kick . | . . . . . . . Crush 2 | . . . 1 . . 1 Escape Stasis 11 | . . . . . . 11 Rewire . | . . . . . . . Trap . | . . . . . . . Miscellaneous . | . . . . . . . Route ------- -11/Scrapyard -10/Materials -10/Mines -9/Materials -8/Materials -7/Factory -7/Storage History --------- Turn | Location | Event 2 | -11/Scrapyard | Met Revision 17 12 | -11/Scrapyard | Discovered new exit (range 16) 60 | -11/Scrapyard | Entered Materials 101 | -10/Materials | Discovered new exit (range 13) 139 | -10/Materials | Entered Mines 316 | -10/Mines | Build established: Mutant 317 | -10/Mines | Learned location of Mines (-9) 399 | -10/Mines | Discovered new exit (range 14) 456 | -10/Mines | Entered Materials 456 | -9/Materials | Evolved 2 slots: Propulsion x1, Utility x1 665 | -9/Materials | Lost 4 parts (1p1n1u1w) 894 | -9/Materials | Lost 3 parts (1n1u1w) 1204 | -9/Materials | Discovered new exit (range 17) 1214 | -9/Materials | Core integrity fell below 50% 1219 | -9/Materials | Entered another Materials area 1219 | -8/Materials | Evolved 2 slots: Power x1, Utility x1 1247 | -8/Materials | Lost 4 parts (1p1n1u1w) 1515 | -8/Materials | Discovered new exit (range 18) 1548 | -8/Materials | Entered Factory 1548 | -7/Factory | Evolved 2 slots: Utility x1, Weapon x1 1811 | -7/Factory | Lost 4 parts (2p1u1w) 2025 | -7/Factory | Discovered new exit (range 5) 2036 | -7/Factory | Entered Storage 2092 | -7/Storage | Repaired Flak Gun 2212 | -7/Storage | Core integrity fell below 50% 2254 | -7/Storage | Lost 6 parts (2p2n1u1w) 2360 | -7/Storage | Core integrity fell below 20% 2370 | -7/Storage | Lost 4 parts (1p2n1u) 2403 | -7/Storage | Destroyed by Y-54 Guardian with Gatling Laser Last Messages --------------- 02381_ Field strength at 33. 02381_ Lgt. Angular Momentum Engine destroyed. 02382_ Field strength at 18. 02382_ K-01 Serf collects debris. 02383_ Field strength at 12. 02384_ Field strength at 6. 02384_ Stasis field depleted. 02386_ U-05 Engineer lays Concrete. 02387_ System corrupted: Heat flow error (+104). 02387_ Imp. VTOL Module destroyed. 02389_ Connecting with Door Terminal... >>Open Sealed Heavy Doors opened. 02390_ Acquired Prototype Launcher. 02391_ Identified Prc. Rocket Launcher. 02400_ Y-54 Guardian destroyed. 02401_ U-05 Engineer lays Concrete. 02402_ The unstable cave ceiling collapses. 02402_ U-05 Engineer lays Concrete. 02402_ U-05 Engineer destroyed. Map ----- +----------------------------------------------------+ | | | | | | | | | | | ????????????????????????????????????????? | | ????????????????????????????????????????? | | ????????????????????????????????????????? | | ????????????????????????????????????????? | | ????????????????????????????????????????? | | ????????????????????????????????????????? | | ????????????????????????????????????????? | | ????????????????????????????????????????? | | ????????????????????????????????????????? | | ????????????????????????????????????????? | | ????????????????????????????????????????? | | ????????????????????????????????????????? | | ???#???????????????????????????###??????? | | ???# ????????????????????????##T#??????? | | ???# ###?##?????????????????# "??????? | | ???# # ????????????????# "??????? | | ??## #?????????# ##### #??????? | | ??# ####### ##+######## | | ??# ! | | ??# %* u Y % % | | ??# ! @ =% k | | ??# #/##### ###+####### | | ????## ??# T#????# ????? ????? | | ?????# ## ????# ##????T ??# """" ??? | | ???????##??????# #?????#" "#?# ""R"" #? | | ???????????????###??????? ??# "" "" #? | | ????????????????????????? ??# # | | ????????????????????????? !!?# ## | | ?????????????????????????! !?# #? | | ?????????????????????????##### ?? | | ?????????????????????????????##""T""####? | | ??????????????????????????????#""""?????? | | ??????????????????????????????##????????? | | ????????????????????????????????????????? | | ????????????????????????????????????????? | | ????????????????????????????????????????? | | ???????????????????????????????????###### | | ???????????????????????????????????# | | ????????????????????????????????????? """ | | ???????????????????????????????????# ""T | | ???????????????????????????????????# | | ???????????????????????????????# / | | ???????????????????????????????# ## """ | | ???????????????????????????????????# """ | | ???????????????????????????????????? """? | +----------------------------------------------------+ Best States ------------- Heat Dissipation 34 Energy Generation 21 Energy Capacity 405 Matter Stores 302 Matter Capacity 450 Sight Range 18 Terrain Scan Density 10 Jamming Range 8 Weapon Shielding 33 Evasion (%) 63 Targeting Accuracy 6 Core Analysis 6 Recoil Reduction 2 Item Schematics ----------------- None Robot Schematics ------------------ None Fabricated ------------ Nothing Alien Tech Used ----------------- None Achievements -------------- Total Silence Universal Adapter Challenges ------------ None Game ------ Seed StorageHypervelocityTreads Manual? 0 Play Time 00:40:55 Cumulative 13.1 hours Start 2021.11.13 @ 23:20:33 End 2021.11.13 @ 23:58:33 Sessions 1 Manual Loads 0 Difficulty Rogue Special Mode None Game No. 48 Rogue 48 Adventurer 0 Explorer 0 Win Type - Total 0 Types 0/0/0/0/0/0/0/0/0 Lore% 13 Gallery% 23 Achievement% 18 Wizard Run 0 Options --------- ASCII 1 Keyboard 0 Movement Mouse Keybinds 0 Fullscreen 1 Font 18/SmallcapsGlow Map View 76x50 Tactical HUD 1 Map Filters NONE Filters NONE Steam 1 RUN: 6e278846-c083-452f-8b9f-03948c3002ad